fUSD/lending_fUSD_20260605
["ID","MTS","AMOUNT","RATE_DAILY","PERIOD"]
[424216704,1780669874000,-500.0,0.00032876,2]
[424216703,1780669874000,-500.0,0.00032876,2]
[424216711,1780669874000,-500.0,0.00032876,2]
[424216705,1780669874000,-460.96571096,0.00032876,2]
[424216707,1780669874000,-500.0,0.00032876,2]
[424216706,1780669874000,-500.0,0.00032876,2]
[424216709,1780669874000,-500.0,0.00032876,2]
[424216708,1780669874000,-500.0,0.00032876,2]
[424216710,1780669874000,-241.81672005,0.00032876,2]
[424216722,1780669874000,-500.0,0.00032876,2]
[424216721,1780669874000,-500.0,0.00032876,2]
[424216714,1780669874000,-2690.8163345,0.00032876,2]
[424216713,1780669874000,-500.0,0.00032876,2]
[424216712,1780669874000,-500.0,0.00032876,2]
[424216723,1780669874000,-607.31909709,0.00032876,2]
[424216724,1780669874000,-500.0,0.00032876,2]
[424216662,1780669874000,-2065.3,0.000328,7]
[424216716,1780669874000,-2690.8163345,0.00032876,2]
[424216718,1780669874000,-368.37873649,0.00032876,2]
[424216720,1780669874000,-445.39792758,0.00032876,2]
[424216717,1780669874000,-2690.8163345,0.00032876,2]
[424216719,1780669874000,-493.3581496,0.00032876,2]
[424216695,1780669874000,-500.0,0.00032876,2]
[424216699,1780669874000,-500.0,0.00032876,2]
[424216715,1780669874000,-2690.8163345,0.00032876,2]
[424216693,1780669874000,-437.68509887,0.00032876,2]
[424216691,1780669874000,-500.0,0.00032876,2]
[424216671,1780669874000,-1000.0,0.00032876,30]
[424216673,1780669874000,-1000.0,0.00032876,30]
[424216674,1780669874000,-1000.0,0.00032876,30]
[424216676,1780669874000,-500.0,0.00032876,2]
[424216677,1780669874000,-500.0,0.00032876,2]
[424216675,1780669874000,-768.30560097,0.00032876,30]
[424216667,1780669874000,-3265.65955674,0.00032849,2]
[424216668,1780669874000,-3265.65955674,0.00032865,2]
[424216670,1780669874000,-1000.0,0.00032876,30]
[424216669,1780669874000,-1000.0,0.00032876,30]
[424216678,1780669874000,-500.0,0.00032876,2]
[424216680,1780669874000,-279.75569928,0.00032876,2]
[424216672,1780669874000,-1000.0,0.00032876,30]
[424216682,1780669874000,-500.0,0.00032876,2]
[424216688,1780669874000,-500.0,0.00032876,2]
[424216700,1780669874000,-500.0,0.00032876,2]
[424216685,1780669874000,-500.0,0.00032876,2]
[424216684,1780669874000,-500.0,0.00032876,2]
[424216686,1780669874000,-605.12812726,0.00032876,2]
[424216692,1780669874000,-500.0,0.00032876,2]
[424216687,1780669874000,-469.35697937,0.00032876,2]
[424216683,1780669874000,-500.0,0.00032876,2]
[424216689,1780669874000,-500.0,0.00032876,2]
[424216679,1780669874000,-500.0,0.00032876,2]
[424216701,1780669874000,-500.0,0.00032876,2]
[424216690,1780669874000,-560.91040728,0.00032876,2]
[424216681,1780669874000,-426.53675812,0.00032876,2]
[424216751,1780669875000,-500.0,0.00032877,2]
[424216759,1780669875000,-500.0,0.00032877,10]
[424216760,1780669875000,-500.0,0.00032877,10]
[424216752,1780669875000,-500.0,0.00032877,2]
[424216758,1780669875000,-335.49,0.00032877,30]
[424216757,1780669875000,-426.16084305,0.00032877,2]
[424216753,1780669875000,-500.0,0.00032877,2]
[424216754,1780669875000,-500.0,0.00032877,2]
[424216755,1780669875000,-500.0,0.00032877,2]
[424216761,1780669875000,-330.46506309,0.00032877,10]
[424216768,1780669875000,-289.11549965,0.00032955,2]
[424216764,1780669875000,-498.97,0.000329,120]
[424216762,1780669875000,-3265.65955674,0.00032881,2]
[424216766,1780669875000,-161.92,0.00032955,2]
[424216767,1780669875000,-161.92,0.00032955,2]
[424216763,1780669875000,-226.02,0.000329,120]
[424216765,1780669875000,-317.07,0.00032955,30]
[424216772,1780669875000,-406.08085529,0.00032955,2]
[424216774,1780669875000,-223.97140442,0.00033,120]
[424216771,1780669875000,-400.0,0.00032955,2]
[424216746,1780669875000,-151.0,0.00032877,7]
[424216756,1780669875000,-500.0,0.00032877,2]
[424216744,1780669875000,-151.0,0.00032877,7]
[424216728,1780669875000,-1065.17447858,0.00032876,2]
[424216741,1780669875000,-151.0,0.00032877,7]
[424216770,1780669875000,-503.48646499,0.00032955,2]
[424216725,1780669875000,-500.0,0.00032876,2]
[424216732,1780669875000,-1123.60171086,0.00032876,2]
[424216726,1780669875000,-197.42048097,0.00032876,2]
[424216727,1780669875000,-1065.17447858,0.00032876,2]
[424216731,1780669875000,-1065.17447858,0.00032876,2]
[424216730,1780669875000,-1065.17447858,0.00032876,2]
[424216734,1780669875000,-1123.60171086,0.00032876,2]
[424216733,1780669875000,-1123.60171086,0.00032876,2]
[424216729,1780669875000,-1065.17447858,0.00032876,2]
[424216736,1780669875000,-854.09,0.00032877,2]
[424216735,1780669875000,-351.03,0.00032877,2]
[424216737,1780669875000,-151.0,0.00032877,7]
[424216739,1780669875000,-151.0,0.00032877,7]
[424216738,1780669875000,-151.0,0.00032877,7]
[424216740,1780669875000,-151.0,0.00032877,7]
[424216747,1780669875000,-151.0,0.00032877,7]
[424216748,1780669875000,-151.0,0.00032877,7]
[424216749,1780669875000,-219.903157,0.00032877,7]
[424216742,1780669875000,-151.0,0.00032877,7]
[424216745,1780669875000,-151.0,0.00032877,7]
[424216743,1780669875000,-151.0,0.00032877,7]
[424216773,1780669875000,-321.62064812,0.00032962,2]
[424216750,1780669875000,-1000.0,0.00032877,120]
[424216776,1780669875000,-178.4326173,0.00033,120]
[424216809,1780669875000,-248.0,0.00033068,30]
[424216802,1780669875000,-216.047316,0.00033,8]
[424216810,1780669875000,-1001.61824326,0.00033115,2]
[424216801,1780669875000,-237.446208,0.00033,8]
[424216811,1780669875000,-196.11992076,0.00033123,120]
[424216812,1780669875000,-482.29571649,0.00033123,120]
[424216813,1780669875000,-246.44,0.00033126,30]
[424216803,1780669875000,-211.97899,0.00033,8]
[424216805,1780669875000,-318.06797243,0.00033,120]
[424216808,1780669875000,-150.0,0.00033068,30]
[424216797,1780669875000,-1001.09671,0.00033,8]
[424216804,1780669875000,-2000.0,0.00033,7]
[424216807,1780669875000,-358.39,0.00033037,30]
[424216814,1780669875000,-179.97120458,0.00033143,2]
[424216818,1780669875000,-150.0,0.00033226,2]
[424216817,1780669875000,-864.78058953,0.00033195,2]
[424216816,1780669875000,-693.39197629,0.00033195,2]
[424216820,1780669875000,-151.0,0.00033247,14]
[424216815,1780669875000,-157.71,0.00033173,7]
[424216819,1780669875000,-172.0,0.00033226,30]
[424216821,1780669875000,-2002.5809,0.0003325,2]
[424216822,1780669875000,-1228.5703,0.0003325,2]
[424216806,1780669875000,-559.0,0.00033011,8]
[424216798,1780669875000,-161.22366768,0.00033,120]
[424216769,1780669875000,-500.0,0.00032955,2]
[424216796,1780669875000,-755.95134166,0.00033,8]
[424216785,1780669875000,-1178.18211358,0.00033,120]
[424216784,1780669875000,-182.58880308,0.00033,120]
[424216786,1780669875000,-296.96911653,0.00033,120]
[424216775,1780669875000,-164.81302495,0.00033,120]
[424216787,1780669875000,-236.39070744,0.00033,120]
[424216779,1780669875000,-189.88583826,0.00033,120]
[424216777,1780669875000,-224.06022268,0.00033,120]
[424216778,1780669875000,-349.36821914,0.00033,120]
[424216781,1780669875000,-181.43366737,0.00033,120]
[424216783,1780669875000,-190.39877443,0.00033,120]
[424216780,1780669875000,-758.57069473,0.00033,120]
[424216790,1780669875000,-1029.56491495,0.00033,120]
[424216782,1780669875000,-189.98920894,0.00033,120]
[424216792,1780669875000,-1187.87646612,0.00033,120]
[424216800,1780669875000,-463.217319,0.00033,14]
[424216823,1780669875000,-537410.88112692,0.0003325,2]
[424216789,1780669875000,-404.77817118,0.00033,120]
[424216799,1780669875000,-280.999999,0.00033,30]
[424216793,1780669875000,-577.6521897,0.00033,120]
[424216791,1780669875000,-301.08379464,0.00033,120]
[424216788,1780669875000,-1083.38666305,0.00033,120]
[424216794,1780669875000,-1093.69,0.00033,30]
[424216795,1780669875000,-52318.84116698,0.00033,2]
[424216824,1780669883000,-1445.54555673,0.0003325,2]
[424216833,1780669883000,-1134.80804887,0.00021702,2]
[424216832,1780669883000,-2506.19195113,0.00021702,2]
[424216830,1780669883000,-816.95206426,0.00015702,2]
[424216831,1780669883000,-3641.0,0.00018702,2]
[424216829,1780669883000,-1613.29999999,0.00015702,2]
[424216828,1780669883000,-1210.74793575,0.00015702,2]
[424216827,1780669883000,-1211.10854567,0.0003325,2]
[424216825,1780669883000,-521.9744762,0.0003325,2]
[424216826,1780669883000,-2578.65459003,0.0003325,2]
[424216834,1780669884000,-7961.04793554,0.00027397,10]
[424216835,1780669898000,152.0,0.00010059,7]
[424216836,1780669898000,152.0,0.00010062,7]
[424216837,1780669898000,152.0,0.00028768,120]
[424216838,1780669900000,-152.0,8.876e-05,2]
[424216840,1780669900000,-756.57846353,9.764e-05,2]
[424216839,1780669900000,-183.00120789,9.038e-05,2]
[424216841,1780669917000,-151.16610051,9.037e-05,2]
[424216842,1780669922000,-150.0,8.766e-05,2]
[424216843,1780669922000,-500.0,9.036e-05,2]
[424216844,1780669922000,-500.0,9.036e-05,2]
[424216847,1780669922000,-500.0,9.036e-05,2]
[424216846,1780669922000,-500.0,9.036e-05,2]
[424216848,1780669922000,-500.0,9.036e-05,2]
[424216849,1780669922000,-301.06011249,9.036e-05,2]
[424216845,1780669922000,-500.0,9.036e-05,2]
[424216850,1780669934000,500.0,9.036e-05,2]
[424216851,1780669934000,500.0,9.036e-05,2]
[424216852,1780669934000,301.06011249,9.036e-05,2]
[424216854,1780669934000,500.0,9.036e-05,2]
[424216855,1780669934000,500.0,9.036e-05,2]
[424216856,1780669934000,500.0,9.036e-05,2]
[424216853,1780669934000,500.0,9.036e-05,2]
[424216857,1780669935000,27.87977502,9.036e-05,2]
[424216858,1780669940000,152.0,0.00010062,7]
[424216859,1780669950000,8200.622558,0.0003013,120]
[424216860,1780669971000,-233.20270142,9.036e-05,2]
[424216861,1780670024000,-150.0,9.034e-05,2]
[424216862,1780670078000,-2136.87272036,9.035e-05,2]
[424216863,1780670098000,-2136.87272036,9.035e-05,2]
[424216864,1780670113000,-5095.96399973,9.035e-05,2]
[424216865,1780670116000,152.0,0.00010054,7]
[424216869,1780670170000,-203.0995433,9.763e-05,2]
[424216868,1780670170000,-250.0,9.624e-05,2]
[424216872,1780670170000,-90.81257715,9.764e-05,2]
[424216867,1780670170000,-250.0,9.403e-05,2]
[424216866,1780670170000,-221.83197889,9.043e-05,2]
[424216871,1780670170000,-784.25590066,9.764e-05,2]
[424216870,1780670170000,-1200.0,9.763e-05,2]
[424216873,1780670201000,-500.0,9.034e-05,2]
[424216875,1780670201000,-500.0,9.034e-05,2]
[424216876,1780670201000,-500.0,9.034e-05,2]
[424216877,1780670201000,-500.0,9.034e-05,2]
[424216874,1780670201000,-500.0,9.034e-05,2]
[424216879,1780670201000,-500.0,9.034e-05,2]
[424216880,1780670201000,-500.0,9.034e-05,2]
[424216881,1780670201000,-500.0,9.034e-05,2]
[424216882,1780670201000,-500.0,9.034e-05,2]
[424216878,1780670201000,-500.0,9.034e-05,2]
[424216891,1780670202000,-500.0,9.034e-05,2]
[424216883,1780670202000,-500.0,9.034e-05,2]
[424216885,1780670202000,-500.0,9.034e-05,2]
[424216884,1780670202000,-500.0,9.034e-05,2]
[424216886,1780670202000,-500.0,9.034e-05,2]
[424216888,1780670202000,-500.0,9.034e-05,2]
[424216887,1780670202000,-500.0,9.034e-05,2]
[424216889,1780670202000,-500.0,9.034e-05,2]
[424216890,1780670202000,-500.0,9.034e-05,2]
[424216892,1780670202000,-500.0,9.034e-05,2]
[424216902,1780670202000,-500.0,9.034e-05,2]
[424216894,1780670202000,-500.0,9.034e-05,2]
[424216895,1780670202000,-500.0,9.034e-05,2]
[424216896,1780670202000,-500.0,9.034e-05,2]
[424216897,1780670202000,-500.0,9.034e-05,2]
[424216898,1780670202000,-448.54973385,9.034e-05,2]
[424216899,1780670202000,-500.0,9.034e-05,2]
[424216900,1780670202000,-500.0,9.034e-05,2]
[424216901,1780670202000,-500.0,9.034e-05,2]
[424216903,1780670202000,-500.0,9.034e-05,2]
[424216893,1780670202000,-500.0,9.034e-05,2]
[424216906,1780670203000,-500.0,9.034e-05,2]
[424216905,1780670203000,-500.0,9.034e-05,2]
[424216908,1780670203000,-500.0,9.034e-05,2]
[424216907,1780670203000,-500.0,9.034e-05,2]
[424216909,1780670203000,-500.0,9.034e-05,2]
[424216910,1780670203000,-500.0,9.034e-05,2]
[424216904,1780670203000,-500.0,9.034e-05,2]
[424216912,1780670203000,-500.0,9.034e-05,2]
[424216913,1780670203000,-500.0,9.034e-05,2]
[424216915,1780670203000,-500.0,9.034e-05,2]
[424216914,1780670203000,-500.0,9.034e-05,2]
[424216916,1780670203000,-500.0,9.034e-05,2]
[424216917,1780670203000,-500.0,9.034e-05,2]
[424216911,1780670203000,-500.0,9.034e-05,2]
[424216918,1780670203000,-551.45026615,9.034e-05,2]
[424216923,1780670236000,-451.45026615,9.034e-05,2]
[424216922,1780670236000,-500.0,9.034e-05,2]
[424216921,1780670236000,-500.0,9.034e-05,2]
[424216919,1780670236000,-48.54973385,9.034e-05,2]
[424216920,1780670236000,-500.0,9.034e-05,2]
[424216925,1780670315000,-250.0,9.046e-05,2]
[424216926,1780670368000,-160.0,9.075e-05,2]
[424216927,1780670368000,296.64782404,9.488e-05,7]
[424216928,1780670415000,-160.0,9.083e-05,2]
[424216929,1780670467000,-215.77576141,9.825e-05,2]
[424216931,1780670497000,-250.0,9.937e-05,2]
[424216932,1780670497000,-500.0,9.948e-05,2]
[424216934,1780670497000,-500.0,9.948e-05,2]
[424216935,1780670497000,-500.0,9.948e-05,2]
[424216933,1780670497000,-500.0,9.948e-05,2]
[424216936,1780670497000,-500.0,9.948e-05,2]
[424216939,1780670497000,-500.0,9.948e-05,2]
[424216938,1780670497000,-500.0,9.948e-05,2]
[424216940,1780670497000,-500.0,9.948e-05,2]
[424216930,1780670497000,-205.423467,9.887e-05,2]
[424216937,1780670497000,-480.79259751,9.948e-05,2]
[424216943,1780670497000,-190.23221581,9.948e-05,2]
[424216945,1780670497000,-190.23221581,9.948e-05,2]
[424216941,1780670497000,-500.0,9.948e-05,2]
[424216942,1780670497000,-500.0,9.948e-05,2]
[424216955,1780670497000,-9999.99,0.00010739,2]
[424216954,1780670497000,-182.75773351,0.00010738,2]
[424216950,1780670497000,-221.83197888,9.95e-05,2]
[424216952,1780670497000,-500.0,9.982e-05,2]
[424216953,1780670497000,-250.0,9.982e-05,2]
[424216949,1780670497000,-300.0,9.949e-05,2]
[424216947,1780670497000,-190.23221581,9.948e-05,2]
[424216948,1780670497000,-1200.0,9.949e-05,2]
[424216946,1780670497000,-500.0,9.948e-05,2]
[424216944,1780670497000,-500.0,9.948e-05,2]
[424216951,1780670497000,-409.18742285,9.951e-05,2]
[424216957,1780670498000,-9999.99,0.00010739,2]
[424216958,1780670498000,-9999.99,0.00010739,2]
[424216959,1780670498000,-24999.99,0.00010739,2]
[424216960,1780670498000,-499.99,0.00011813,2]
[424216963,1780670498000,-9999.99,0.00011813,2]
[424216962,1780670498000,-999.99,0.00011813,2]
[424216961,1780670498000,-4999.99,0.00011813,2]
[424216967,1780670498000,-6057.58,0.00011984,2]
[424216965,1780670498000,-10158.86,0.00011813,2]
[424216956,1780670498000,-299.99,0.00010739,2]
[424216964,1780670498000,-150.99,0.00011813,2]
[424216966,1780670498000,-1806.32,0.00011889,2]
[424216969,1780670499000,190.23221581,9.948e-05,2]
[424216968,1780670499000,500.0,9.948e-05,2]
[424216970,1780670520000,-169.28153421,0.00012014,2]
[424216971,1780670523000,1726.03761555,9.948e-05,2]
[424216972,1780670531000,500.0,9.948e-05,2]
[424216973,1780670532000,190.23221581,9.948e-05,2]
[424216975,1780670573000,-6126.61167565,0.00012098,2]
[424216976,1780670574000,-10763.71832435,0.00012098,2]
[424216977,1780670574000,-160.0,0.00012098,2]
[424216980,1780670574000,-250.0,0.00012508,2]
[424216979,1780670574000,-164.76,0.00012224,2]
[424216978,1780670574000,-250.0,0.00012161,2]
[424216981,1780670574000,-21409.609572,0.00012714,2]
[424216985,1780670574000,-6456.03773734,0.00012772,2]
[424216986,1780670574000,-1577.99980664,0.00012772,2]
[424216984,1780670574000,-219.75752922,0.00012772,2]
[424216983,1780670574000,-1278.48651858,0.00012772,2]
[424216988,1780670574000,-3393.83861752,0.00012814,2]
[424216987,1780670574000,-150.0,0.00012813,2]
[424216982,1780670574000,-1274.94,0.00012731,2]
[424216991,1780670736000,1000.0,0.00030137,120]
[424216992,1780670820000,1000.0,0.00030137,120]
[424216994,1780670844000,152.0,0.00010063,7]
[424216993,1780670844000,152.0,0.00010063,7]
[424216995,1780670877000,160.0,0.00030137,120]
[424216998,1780670963000,-500.0,9.718e-05,2]
[424217000,1780670963000,-229.0,9.814e-05,2]
[424216999,1780670963000,-250.0,9.766e-05,2]
[424217001,1780670982000,152.0,0.00010062,7]
[424217002,1780670989000,888.0,0.00030137,120]
[424217003,1780671017000,-250.0,0.00010689,2]
[424217030,1780671034000,-1455.9108136,0.00011618,2]
[424217024,1780671034000,-4251.99,0.00011617,2]
[424217026,1780671034000,-150.0,0.00011617,2]
[424217028,1780671034000,-4575.0368714,0.00011618,2]
[424217031,1780671034000,-9999.99,0.00011618,2]
[424217029,1780671034000,-3086.0034935,0.00011618,2]
[424217025,1780671034000,-399.54625356,0.00011617,2]
[424217033,1780671034000,-9999.99,0.00011618,2]
[424217040,1780671034000,-160.0,0.00011652,2]
[424217041,1780671034000,-250.0,0.00011758,2]
[424217042,1780671034000,-150.0,0.0001176,2]
[424217032,1780671034000,-9999.99,0.00011618,2]
[424217037,1780671034000,-150.99,0.00011618,2]
[424217035,1780671034000,-24999.99,0.00011618,2]
[424217043,1780671034000,-233.9137029,0.0001185,7]
[424217027,1780671034000,-188.34689597,0.00011617,2]
[424217023,1780671034000,-334.37,0.00011538,2]
[424217014,1780671034000,-240.49724821,0.00011111,2]
[424217020,1780671034000,-200.0,0.00011429,2]
[424217004,1780671034000,-250.0,0.00010689,2]
[424217005,1780671034000,-300.0,0.00011111,2]
[424217006,1780671034000,-386.53145006,0.00011111,2]
[424217011,1780671034000,-154.42741316,0.00011111,2]
[424217034,1780671034000,-999.99,0.00011618,2]
[424217015,1780671034000,-357.74807189,0.00011112,2]
[424217007,1780671034000,-813.46854994,0.00011111,2]
[424217022,1780671034000,-466.75527923,0.00011435,2]
[424217008,1780671034000,-300.0,0.00011111,2]
[424217010,1780671034000,-500.0,0.00011111,2]
[424217009,1780671034000,-500.0,0.00011111,2]
[424217017,1780671034000,-494.97495455,0.00011112,2]
[424217016,1780671034000,-826.96048435,0.00011112,2]
[424217018,1780671034000,-1502.31648921,0.00011112,2]
[424217019,1780671034000,-212.3,0.00011378,2]
[424217021,1780671034000,-533.24472077,0.00011435,2]
[424217013,1780671034000,-35.0143099,0.00011111,2]
[424217039,1780671034000,-9999.99,0.00011645,2]
[424217012,1780671034000,-310.55827694,0.00011111,2]
[424217036,1780671034000,-299.99,0.00011618,2]
[424217075,1780671034000,-1051.99987108,0.00012714,2]
[424217076,1780671034000,-215.77576141,0.00012759,2]
[424217079,1780671034000,-500.0,0.00012813,2]
[424217078,1780671034000,-1200.0,0.000128,4]
[424217081,1780671034000,-1019.76924146,0.00012813,3]
[424217080,1780671034000,-1019.76924147,0.00012813,3]
[424217083,1780671034000,-1000.0,0.00012813,2]
[424217077,1780671034000,-3726.28,0.00012786,2]
[424217088,1780671034000,-113856.40324624,0.00012814,2]
[424217082,1780671034000,-150.0,0.00012813,2]
[424217089,1780671034000,-452.34929037,0.00012814,2]
[424217087,1780671034000,-70792.82769653,0.00012814,2]
[424217086,1780671034000,-43452.36208752,0.00012814,2]
[424217090,1780671034000,-1197.0,0.00012814,2]
[424217091,1780671034000,-365.976,0.00012814,2]
[424217038,1780671034000,-4999.99,0.00011645,2]
[424217085,1780671034000,-250.0,0.00012813,2]
[424217073,1780671034000,-99319.5527,0.00012714,2]
[424217084,1780671034000,-1000.0,0.00012813,2]
[424217074,1780671034000,-2500.0,0.00012714,2]
[424217046,1780671034000,-500.0,0.00012059,2]
[424217048,1780671034000,-4576.05,0.00012102,2]
[424217059,1780671034000,-1680.0,0.00012223,2]
[424217047,1780671034000,-233.63,0.00012059,2]
[424217057,1780671034000,-420.0,0.00012209,2]
[424217045,1780671034000,-34496.62,0.00012055,2]
[424217049,1780671034000,-294.81,0.00012102,2]
[424217063,1780671034000,-5258.669,0.00012558,2]
[424217055,1780671034000,-156.37725924,0.00012199,7]
[424217061,1780671034000,-293.63,0.00012272,2]
[424217052,1780671034000,-150.0,0.00012199,7]
[424217065,1780671034000,-247.992,0.00012558,2]
[424217067,1780671034000,-400.0,0.000126,4]
[424217069,1780671034000,-800.0,0.000127,4]
[424217071,1780671034000,-6817.3354,0.00012714,2]
[424217044,1780671034000,-150.0,0.00012054,2]
[424217072,1780671034000,-4178.2982,0.00012714,2]
[424217092,1780671035000,-436.7759373,0.00012814,2]
[424217093,1780671035000,-8467.46429254,0.00012814,2]
[424217094,1780671035000,-1604.2,0.00012814,2]
[424217125,1780671038000,-167.0,0.00012814,2]
[424217124,1780671038000,-357.3671277,0.00012814,2]
[424217119,1780671038000,-2255980.80283198,0.00012814,2]
[424217123,1780671038000,-302.46,0.00012814,2]
[424217121,1780671038000,-150.0,0.00012814,2]
[424217122,1780671038000,-213.0,0.00012814,2]
[424217120,1780671038000,-200.0,0.00012814,2]
[424217133,1780671039000,-4000.0,0.00013095,2]
[424217132,1780671039000,-200.0,0.00012942,2]
[424217136,1780671039000,-4000.0,0.00013423,2]
[424217126,1780671039000,-167.0,0.00012814,2]
[424217130,1780671039000,-9999.99,0.00012893,2]
[424217127,1780671039000,-250.0,0.0001284,2]
[424217128,1780671039000,-150.0,0.00012847,2]
[424217129,1780671039000,-2000.0,0.00012872,2]
[424217135,1780671039000,-200.0,0.00013295,2]
[424217131,1780671039000,-1600.0,0.000129,4]
[424217140,1780671039000,-300.0,0.00013684,2]
[424217137,1780671039000,-2351.0,0.00013445,2]
[424217139,1780671039000,-444.0,0.00013546,2]
[424217142,1780671039000,-666.0,0.00013684,2]
[424217138,1780671039000,-447.0,0.00013546,2]
[424217141,1780671039000,-666.0,0.00013684,2]
[424217143,1780671039000,-500.0,0.00013698,2]
[424217144,1780671039000,-500.0,0.00013698,2]
[424217145,1780671039000,-500.0,0.00013698,2]
[424217134,1780671039000,-255.0,0.00013139,2]
[424217267,1780671040000,-500.0,0.00013698,2]
[424217265,1780671040000,-500.0,0.00013698,2]
[424217269,1780671040000,-500.0,0.00013698,2]
[424217252,1780671040000,-500.0,0.00013698,2]
[424217254,1780671040000,-500.0,0.00013698,2]
[424217251,1780671040000,-500.0,0.00013698,2]
[424217255,1780671040000,-500.0,0.00013698,2]
[424217250,1780671040000,-610.28940694,0.00013698,2]
[424217272,1780671040000,-419.79135557,0.00013698,2]
[424217261,1780671040000,-500.0,0.00013698,2]
[424217249,1780671040000,-500.0,0.00013698,2]
[424217282,1780671040000,-500.0,0.00013698,2]
[424217274,1780671040000,-500.0,0.00013698,2]
[424217285,1780671040000,-500.0,0.00013698,2]
[424217284,1780671040000,-500.0,0.00013698,2]
[424217288,1780671040000,-500.0,0.00013698,2]
[424217281,1780671040000,-500.0,0.00013698,2]
[424217278,1780671040000,-500.0,0.00013698,2]
[424217287,1780671040000,-500.0,0.00013698,2]
[424217286,1780671040000,-500.0,0.00013698,2]
[424217276,1780671040000,-500.0,0.00013698,2]
[424217280,1780671040000,-500.0,0.00013698,2]
[424217289,1780671040000,-500.0,0.00013698,2]
[424217292,1780671040000,-390.93546156,0.00013698,2]
[424217298,1780671040000,-500.0,0.00013698,2]
[424217283,1780671040000,-500.0,0.00013698,2]
[424217258,1780671040000,-500.0,0.00013698,2]
[424217244,1780671040000,-500.0,0.00013698,2]
[424217246,1780671040000,-500.0,0.00013698,2]
[424217222,1780671040000,-500.0,0.00013698,2]
[424217221,1780671040000,-500.0,0.00013698,2]
[424217224,1780671040000,-500.0,0.00013698,2]
[424217223,1780671040000,-500.0,0.00013698,2]
[424217236,1780671040000,-500.0,0.00013698,2]
[424217226,1780671040000,-500.0,0.00013698,2]
[424217225,1780671040000,-500.0,0.00013698,2]
[424217227,1780671040000,-500.0,0.00013698,2]
[424217229,1780671040000,-500.0,0.00013698,2]
[424217230,1780671040000,-500.0,0.00013698,2]
[424217234,1780671040000,-500.0,0.00013698,2]
[424217231,1780671040000,-500.0,0.00013698,2]
[424217228,1780671040000,-500.0,0.00013698,2]
[424217232,1780671040000,-500.0,0.00013698,2]
[424217233,1780671040000,-500.0,0.00013698,2]
[424217235,1780671040000,-500.0,0.00013698,2]
[424217237,1780671040000,-343.91631724,0.00013698,2]
[424217239,1780671040000,-500.0,0.00013698,2]
[424217238,1780671040000,-500.0,0.00013698,2]
[424217247,1780671040000,-500.0,0.00013698,2]
[424217240,1780671040000,-500.0,0.00013698,2]
[424217243,1780671040000,-500.0,0.00013698,2]
[424217241,1780671040000,-500.0,0.00013698,2]
[424217242,1780671040000,-500.0,0.00013698,2]
[424217245,1780671040000,-500.0,0.00013698,2]
[424217248,1780671040000,-500.1699755,0.00013698,2]
[424217290,1780671040000,-500.0,0.00013698,2]
[424217263,1780671040000,-500.0,0.00013698,2]
[424217291,1780671040000,-500.0,0.00013698,2]
[424217324,1780671040000,-564.28,0.00013698,2]
[424217326,1780671040000,-564.28,0.00013698,2]
[424217325,1780671040000,-564.28,0.00013698,2]
[424217327,1780671040000,-564.28,0.00013698,2]
[424217329,1780671040000,-564.28,0.00013698,2]
[424217330,1780671040000,-564.28,0.00013698,2]
[424217328,1780671040000,-564.28,0.00013698,2]
[424217332,1780671040000,-564.28,0.00013698,2]
[424217331,1780671040000,-564.28,0.00013698,2]